bitfinex/quotes_BTCUSD_20250421
["timestamp","ask_amount","ask_price","bid_price","bid_amount"]
[1745250026075,0.76319568,88229.0,88228.0,0.00013619]
[1745250026494,0.77373369,88229.0,88228.0,0.00013619]
[1745250026688,0.77473369,88229.0,88228.0,0.00013619]
[1745250027822,0.77473369,88229.0,88214.0,0.01133606]
[1745250027823,0.00543944,88215.0,88214.0,0.23805744]
[1745250028030,0.17543944,88215.0,88214.0,0.23805744]
[1745250028279,0.19651285,88215.0,88214.0,0.23805744]
[1745250028739,0.00543944,88214.0,88213.0,0.23805966]
[1745250028936,0.16,88214.0,88213.0,0.23805966]
[1745250029350,0.00543944,88206.0,88202.0,0.01133761]
[1745250029548,0.14543944,88206.0,88204.0,0.22674515]
[1745250029783,0.16651285,88206.0,88204.0,0.22674515]
[1745250030539,0.16651285,88206.0,88204.0,0.22674644]
[1745250030746,0.16651285,88206.0,88200.0,0.01133786]
[1745250030747,0.17705086,88206.0,88200.0,0.01133786]
[1745250030950,0.17705086,88206.0,88203.0,0.01133748]
[1745250031174,0.17705086,88206.0,88200.0,0.01133786]
[1745250031378,0.18670151,88206.0,88200.0,0.01133786]
[1745250031582,0.2076339,88206.0,88193.0,0.01133876]
[1745250031752,0.2076339,88206.0,88197.0,0.01133825]
[1745250031947,0.2076339,88206.0,88198.0,0.01133812]
[1745250032149,0.43437584,88206.0,88192.0,0.23896078]
[1745250032361,0.43437584,88206.0,88193.0,0.01133876]
[1745250032698,0.43437584,88206.0,88194.0,0.01133863]
[1745250033194,0.43437584,88206.0,88195.0,0.01133851]
[1745250033337,0.43437584,88206.0,88196.0,0.01133838]
[1745250033539,0.2076339,88206.0,88197.0,0.01133825]
[1745250033738,0.2076339,88206.0,88198.0,0.01133812]
[1745250034026,0.2076339,88206.0,88201.0,0.2267547]
[1745250034156,0.2076339,88206.0,88201.0,0.01133773]
[1745250034351,0.2076339,88206.0,88200.0,0.01133786]
[1745250034554,0.2076339,88206.0,88199.0,0.01133799]
[1745250034778,0.43437584,88206.0,88196.0,0.01133838]
[1745250035263,0.43437584,88206.0,88193.0,0.23810904]
[1745250035459,0.43437584,88206.0,88193.0,0.01133876]
[1745250036075,0.43437584,88206.0,88196.0,0.01133838]
[1745250036243,0.43437584,88206.0,88195.0,0.01133851]
[1745250036401,0.43437584,88206.0,88196.0,0.01133838]
[1745250036607,0.43437584,88206.0,88194.0,0.01133863]
[1745250036832,0.43437584,88206.0,88195.0,0.23810804]
[1745250037203,0.2162243,88206.0,88198.0,0.01133812]
[1745250037586,0.2162243,88206.0,88198.0,0.23810001]
[1745250037761,0.2162243,88206.0,88198.0,0.01133812]
[1745250038487,0.44296624,88206.0,88193.0,0.22677502]
[1745250038693,0.44396624,88206.0,88192.0,0.000845]
[1745250039092,0.44396624,88206.0,88194.0,0.01133863]
[1745250039535,0.44396624,88206.0,88196.0,0.01133838]
[1745250039667,0.2172243,88206.0,88198.0,0.01133812]
[1745250039870,0.2172243,88206.0,88199.0,0.01133799]
[1745250040075,0.44396624,88206.0,88198.0,0.23810042]
[1745250040279,0.44396624,88206.0,88198.0,0.01133812]
[1745250040495,0.44396624,88206.0,88197.0,0.01133825]
[1745250040699,0.55772218,88206.0,88162.0,0.5469081]
[1745250040897,0.55772218,88206.0,88188.0,0.01133941]
[1745250040898,0.89772218,88206.0,88188.0,0.01133941]
[1745250041106,0.5572243,88206.0,88198.0,0.01133812]
[1745250041278,0.5572243,88206.0,88193.0,0.01133876]
[1745250041279,0.78396624,88206.0,88193.0,0.23811239]
[1745250041480,0.78396624,88206.0,88195.0,0.01133851]
[1745250041668,0.78396624,88206.0,88193.0,0.23811239]
[1745250041866,0.78396624,88206.0,88191.0,0.22677895]
[1745250042070,0.78396624,88206.0,88192.0,0.23896157]
[1745250042723,0.78396624,88206.0,88193.0,0.01133876]
[1745250042930,0.78396624,88206.0,88192.0,0.23896157]
[1745250042931,1.48396624,88206.0,88192.0,0.000845]
[1745250043167,1.48496624,88206.0,88192.0,0.000845]
[1745250044126,1.48496624,88206.0,88192.0,0.01218389]
[1745250044548,1.48496624,88206.0,88196.0,0.01133838]
[1745250044755,1.48496624,88206.0,88193.0,0.01133876]
[1745250045101,1.48496624,88206.0,88192.0,0.23896107]
[1745250045302,1.48496624,88206.0,88193.0,0.01133876]
[1745250045802,1.48496624,88206.0,88192.0,0.23896107]
[1745250046307,0.00543944,88192.0,88191.0,0.01133902]
[1745250046440,0.10543944,88193.0,88192.0,0.22677793]
[1745250046658,0.16,88193.0,88192.0,0.27440161]
[1745250046866,0.7,88204.0,88203.0,0.2412905]
[1745250047065,0.03166381,88206.0,88205.0,0.24128536]
[1745250047066,1e-08,88206.0,88205.0,0.24128536]
[1745250047294,0.15000001,88206.0,88205.0,0.64538953]
[1745250047496,0.15000001,88206.0,88205.0,0.69128953]
[1745250048094,0.15000001,88206.0,88205.0,0.60032048]
[1745250049063,0.15,88206.0,88205.0,0.4601613]
[1745250049918,0.15,88206.0,88205.0,0.4621613]
[1745250050115,0.15,88206.0,88205.0,0.4601613]
[1745250050499,0.15,88206.0,88205.0,0.4621613]
[1745250051415,0.15,88206.0,88205.0,0.4651613]
[1745250051807,0.15,88206.0,88205.0,0.57591335]
[1745250052034,0.15,88206.0,88205.0,0.57891335]
[1745250055414,0.1,88222.0,88205.0,0.57891335]
[1745250055415,0.20543944,88233.0,88205.0,0.96771335]
[1745250055609,0.10013606,88233.0,88232.0,0.24121597]
[1745250055810,0.10013606,88233.0,88232.0,0.35497191]
[1745250057283,0.10013606,88233.0,88232.0,0.35697191]
[1745250058878,0.10013606,88233.0,88232.0,0.35897191]
[1745250059475,0.13177087,88233.0,88232.0,0.35897191]
[1745250059677,0.13177087,88233.0,88232.0,0.35697191]
[1745250059935,0.13177087,88233.0,88232.0,0.35797191]
[1745250060115,0.13177087,88233.0,88232.0,0.35697191]
[1745250060441,0.13177087,88233.0,88232.0,0.35597191]
[1745250060584,0.13177087,88233.0,88232.0,0.35797191]
[1745250060794,0.13177087,88233.0,88232.0,0.47172396]
[1745250060993,0.13177087,88233.0,88232.0,0.46972396]
[1745250061443,0.13177087,88233.0,88232.0,0.47172396]
[1745250062118,1e-08,88233.0,88232.0,0.47172396]
[1745250063478,1e-08,88233.0,88232.0,0.47272396]
[1745250063967,1e-08,88233.0,88232.0,0.91012396]
[1745250065246,1e-08,88233.0,88232.0,0.81172396]
[1745250068542,1e-08,88233.0,88232.0,0.47172396]
[1745250069141,1e-08,88233.0,88232.0,0.34343106]
[1745250069535,1e-08,88233.0,88232.0,0.003]
[1745250070146,1e-08,88233.0,88232.0,0.001]
[1745250070494,1e-08,88233.0,88232.0,0.22767512]
[1745250070656,1e-08,88233.0,88232.0,0.34369762]
[1745250070852,1e-08,88233.0,88232.0,0.35497191]
[1745250071575,1e-08,88233.0,88232.0,0.35597191]
[1745250071742,1e-08,88233.0,88232.0,0.46184109]
[1745250071933,1e-08,88233.0,88232.0,0.35497191]
[1745250074133,1e-08,88233.0,88232.0,0.76677191]
[1745250074291,0.02108391,88233.0,88232.0,0.76677191]
[1745250074498,0.03163004,88233.0,88232.0,0.4118]
[1745250074713,0.03163004,88233.0,88232.0,0.63847512]
[1745250074914,0.03163004,88233.0,88232.0,0.4118]
[1745250075277,0.32029555,88233.0,88232.0,0.4118]
[1745250075636,0.09362299,88233.0,88232.0,0.4118]
[1745250076243,0.09362299,88233.0,88232.0,0.70572427]
[1745250076444,0.08666948,88233.0,88232.0,0.4118]
[1745250076653,0.08666948,88233.0,88232.0,0.63847512]
[1745250076845,0.08123004,88233.0,88232.0,0.63847512]
[1745250077059,0.08666948,88233.0,88232.0,0.63847512]
[1745250077250,0.08766948,88233.0,88232.0,0.4118]
[1745250079140,0.09562299,88233.0,88232.0,0.4118]
[1745250079832,0.09018355,88233.0,88232.0,0.4118]
[1745250080041,0.09562299,88233.0,88232.0,0.4118]
[1745250080988,0.09562299,88233.0,88232.0,0.63847512]
[1745250081204,0.09562299,88233.0,88232.0,0.4118]
[1745250081461,0.09562299,88233.0,88232.0,0.63847512]
[1745250081641,0.04802299,88233.0,88232.0,0.73065843]
[1745250081844,0.04006948,88233.0,88232.0,0.73065843]
[1745250082450,0.04006948,88233.0,88232.0,0.63847512]
[1745250082975,0.03463004,88233.0,88232.0,0.76677191]
[1745250083190,0.03463004,88233.0,88232.0,0.78600601]
[1745250083598,1e-08,88233.0,88232.0,0.78700602]
[1745250083823,0.0004226,88248.0,88247.0,0.24117744]
[1745250084002,0.1404226,88248.0,88247.0,0.35493338]
[1745250084205,0.14053573,88248.0,88247.0,0.35493338]
[1745250085657,0.14053573,88248.0,88247.0,0.35593338]
[1745250085858,0.14053573,88248.0,88247.0,0.34139253]
[1745250086063,0.14053573,88248.0,88247.0,0.37152333]
[1745250087237,0.14053573,88248.0,88247.0,0.35793338]
[1745250088221,0.14053573,88248.0,88247.0,0.35493338]
[1745250088667,0.14053573,88248.0,88247.0,0.35793338]
[1745250088887,0.14053573,88248.0,88247.0,0.76773337]
[1745250089074,0.14053573,88248.0,88247.0,0.76673337]
[1745250089281,0.14053573,88248.0,88247.0,0.44052233]
[1745250089453,0.14053573,88248.0,88247.0,0.55340687]
[1745250090264,0.14053573,88248.0,88247.0,0.55140687]
[1745250090820,0.14053573,88248.0,88247.0,0.55040688]
[1745250091080,0.14053573,88248.0,88247.0,0.54940687]
[1745250091285,0.14053573,88248.0,88247.0,0.55040688]
[1745250091693,0.14053573,88248.0,88247.0,0.66515893]
[1745250091839,0.14053573,88248.0,88247.0,0.66615893]
[1745250092035,0.14053573,88248.0,88247.0,0.66515893]
[1745250092242,0.14053573,88248.0,88247.0,0.66415893]
[1745250092440,0.14053573,88248.0,88247.0,0.55240688]
[1745250095913,0.16167887,88248.0,88247.0,0.2296366]
[1745250096482,0.17225158,88248.0,88247.0,0.2296366]
[1745250102110,0.17225158,88248.0,88247.0,0.22863659]
[1745250102274,0.17225158,88248.0,88247.0,0.2296366]
[1745250102470,0.17788519,88248.0,88247.0,0.2296366]
[1745250102675,0.17225158,88248.0,88247.0,0.2296366]
[1745250102895,0.17788519,88248.0,88247.0,0.2296366]
[1745250103100,0.17225158,88248.0,88247.0,0.2296366]
[1745250103285,0.17788519,88248.0,88247.0,0.2296366]
[1745250103482,0.17225158,88248.0,88247.0,0.2296366]
[1745250103714,0.17788519,88248.0,88247.0,0.00300001]
[1745250103920,0.22175158,88248.0,88247.0,0.00300001]
[1745250104080,0.22738519,88248.0,88247.0,0.00200001]
[1745250104275,0.22738519,88248.0,88247.0,0.00100001]
[1745250104481,0.22738519,88248.0,88247.0,0.00200001]
[1745250105133,0.45945866,88248.0,88247.0,0.00100001]
[1745250105340,0.28012463,88248.0,88247.0,0.00100001]
[1745250105892,0.50675866,88248.0,88247.0,0.00100001]
[1745250106064,0.50775866,88248.0,88247.0,0.00100001]
[1745250107068,0.62151071,88248.0,88247.0,0.00100001]
[1745250107481,1.0615146,88248.0,88247.0,0.00100001]
[1745250107719,1.09324852,88248.0,88247.0,0.00100001]
[1745250107899,0.00543944,88219.0,88213.0,0.01133619]
[1745250108101,0.02114314,88218.0,88215.0,0.01133594]
[1745250108302,0.17657115,88218.0,88216.0,0.22671551]
[1745250108462,0.01057271,88217.0,88216.0,0.22671551]
[1745250108663,0.17599681,88217.0,88216.0,0.22671551]
[1745250108882,0.19713995,88217.0,88216.0,0.22671551]
[1745250109083,0.19713995,88217.0,88216.0,0.22685157]
[1745250110102,0.19713995,88217.0,88216.0,0.32336444]
[1745250110807,0.19713995,88217.0,88216.0,0.22685157]
[1745250110977,0.20257939,88217.0,88216.0,0.22785157]
[1745250111794,0.2110667,88217.0,88216.0,0.22785157]
[1745250111994,0.2110667,88217.0,88216.0,0.22685157]
[1745250112421,0.2110667,88217.0,88216.0,0.22785157]
[1745250114461,0.2110667,88217.0,88216.0,0.00113606]
[1745250115030,0.2110667,88217.0,88216.0,0.2278523]
[1745250115462,0.2110667,88217.0,88216.0,0.00113606]
[1745250115621,0.2110667,88217.0,88216.0,0.2278523]
[1745250116828,0.2110667,88217.0,88216.0,0.00113606]
[1745250117667,0.2110667,88217.0,88216.0,0.2278523]
[1745250117870,0.2110667,88217.0,88216.0,0.00113606]
[1745250118532,0.2110667,88217.0,88216.0,0.2278523]
[1745250119465,0.2110667,88217.0,88216.0,0.2268523]
[1745250121338,0.59546563,88217.0,88216.0,0.00013606]
[1745250121562,0.3110667,88217.0,88216.0,0.00013606]
[1745250121762,0.53778037,88217.0,88216.0,0.00013606]
[1745250122638,0.53878037,88217.0,88216.0,0.00013606]
[1745250122868,0.76628836,88217.0,88216.0,0.00013606]
[1745250123074,0.81258836,88217.0,88216.0,0.00013606]
[1745250123275,0.91258836,88217.0,88216.0,0.00013606]
[1745250123478,0.79883631,88217.0,88216.0,0.00013606]
[1745250123966,0.37672652,88212.0,88211.0,0.0004225]
[1745250124120,0.65708596,88212.0,88211.0,0.0004225]
[1745250124319,0.6621286,88212.0,88211.0,0.0004225]
[1745250124546,0.45654522,88212.0,88211.0,0.0004225]
[1745250124719,0.55654522,88212.0,88211.0,0.0004225]
[1745250124942,0.35675849,88212.0,88211.0,0.22715159]
[1745250125147,0.20271585,88212.0,88211.0,0.41356244]
[1745250125779,0.20171585,88212.0,88211.0,0.41356244]
[1745250125980,0.20171585,88212.0,88211.0,0.46096244]
[1745250126779,0.20171585,88212.0,88211.0,0.46196244]
[1745250127180,0.20171585,88212.0,88211.0,0.46096244]
[1745250127380,0.20171585,88212.0,88211.0,0.41456244]
[1745250127590,0.20171585,88212.0,88211.0,0.41756244]
[1745250128217,0.20171585,88212.0,88211.0,0.35744838]
[1745250128372,0.20171585,88212.0,88211.0,0.35944838]
[1745250133470,0.20171585,88212.0,88211.0,0.23115159]
[1745250134104,0.20715529,88212.0,88211.0,0.23115159]
[1745250135165,0.20715529,88212.0,88211.0,0.22915159]
[1745250135366,0.20715529,88212.0,88211.0,0.22815159]
[1745250135512,0.21356251,88212.0,88211.0,0.23015159]
[1745250135714,0.21356251,88212.0,88211.0,0.30271542]
[1745250135960,0.21356251,88212.0,88211.0,0.30071542]
[1745250136170,0.21356251,88212.0,88211.0,0.29971542]
[1745250136371,0.21356251,88212.0,88211.0,0.22815159]
[1745250136514,0.21356251,88212.0,88211.0,0.22915159]
[1745250137128,0.20812307,88212.0,88211.0,0.22915159]
[1745250137342,0.21356251,88212.0,88211.0,0.22915159]
[1745250137744,0.20812307,88212.0,88211.0,0.23015159]
[1745250137945,0.21356251,88212.0,88211.0,0.23015159]
[1745250139327,0.31356251,88212.0,88211.0,0.23015159]
[1745250140377,0.31356251,88212.0,88211.0,0.30191542]
[1745250140904,0.31356251,88212.0,88211.0,0.23015159]
[1745250141951,0.21356251,88212.0,88211.0,0.23015159]
[1745250143738,0.20812307,88212.0,88211.0,0.23015159]
[1745250143943,0.21356251,88212.0,88211.0,0.23015159]
[1745250144574,0.20812307,88212.0,88211.0,0.23015159]
[1745250144786,0.21356251,88212.0,88211.0,0.32458883]
[1745250144987,0.21356251,88212.0,88211.0,0.23015159]
[1745250147790,0.48678903,88212.0,88211.0,0.0034225]
[1745250148176,0.53318903,88212.0,88211.0,0.0034225]
[1745250148603,0.53318903,88212.0,88211.0,0.0024225]
[1745250149101,0.15,88202.0,88200.0,0.2380952]
[1745250149309,0.31543944,88202.0,88201.0,0.22675479]
[1745250149569,0.33658258,88202.0,88201.0,0.22675479]
[1745250149985,0.34715529,88202.0,88201.0,0.22675479]
[1745250150578,0.00543944,88201.0,88197.0,0.23810329]
[1745250150780,0.16543944,88201.0,88200.0,0.22675736]
[1745250151133,0.16643944,88201.0,88200.0,0.22675736]
[1745250151345,0.17701215,88201.0,88200.0,0.22675736]
[1745250151684,0.00543944,88199.0,88198.0,0.23810043]
[1745250151897,0.18262543,88199.0,88198.0,0.23810043]
[1745250152313,0.20379353,88199.0,88198.0,0.23810043]
[1745250152673,0.21436624,88199.0,88198.0,0.23810043]
[1745250153269,0.21436624,88199.0,88198.0,0.23910043]
[1745250153490,0.21436624,88199.0,88198.0,0.24010043]
[1745250153697,0.19718025,88199.0,88198.0,0.33445206]
[1745250153871,0.19718025,88199.0,88198.0,0.24010043]
[1745250156412,0.19718025,88199.0,88198.0,0.65190043]
[1745250158375,0.19718025,88199.0,88198.0,0.4138]
[1745250158526,0.51634019,88199.0,88198.0,0.4138]
[1745250159289,0.51634019,88199.0,88198.0,0.4128]
[1745250159750,0.51634019,88199.0,88198.0,0.40330314]
[1745250160695,0.23220452,88197.0,88196.0,0.0004225]
[1745250160896,0.39277723,88197.0,88196.0,0.0004225]
[1745250161184,0.41394533,88197.0,88196.0,0.0004225]
[1745250161990,0.75394533,88197.0,88196.0,0.0004225]
[1745250162146,0.75494533,88197.0,88196.0,0.0004225]
[1745250162748,0.86870127,88197.0,88196.0,0.0004225]
[1745250165146,0.25543944,88188.0,88187.0,0.00609706]
[1745250165281,0.32660754,88188.0,88187.0,0.23288785]
[1745250165710,0.32660754,88188.0,88185.0,0.01133979]
[1745250165911,0.00543944,88186.0,88185.0,0.01133979]
[1745250166139,0.16543944,88186.0,88185.0,0.23813573]
[1745250166308,0.18660754,88186.0,88185.0,0.23813573]
[1745250166515,0.18660754,88186.0,88185.0,0.23858907]
[1745250166711,0.18660754,88186.0,88185.0,0.00045334]
[1745250166914,0.19718025,88186.0,88185.0,0.22724928]
[1745250167255,0.20576752,88186.0,88185.0,0.00145334]
[1745250167798,0.20576752,88186.0,88185.0,0.22824928]
[1745250168402,0.20576752,88186.0,88185.0,0.00145334]
[1745250168605,0.43256088,88186.0,88185.0,0.00145334]
[1745250168749,0.47846088,88186.0,88185.0,0.00145334]
[1745250168949,0.47846088,88186.0,88185.0,0.00245334]
[1745250169358,0.59221682,88186.0,88185.0,0.00245334]
[1745250169562,0.63871682,88186.0,88185.0,0.00245334]
[1745250170143,0.63871682,88186.0,88185.0,0.00145334]
[1745250170353,0.63871682,88186.0,88185.0,0.00245334]
[1745250170795,0.63871682,88186.0,88185.0,0.00145334]
[1745250170985,0.33224309,88182.0,88181.0,0.002]
[1745250171196,0.51341119,88182.0,88181.0,0.00205654]
[1745250172481,0.5239839,88182.0,88181.0,0.00205654]
[1745250172631,0.29718025,88182.0,88181.0,0.00205654]
[1745250173246,0.75093619,88182.0,88181.0,0.00305654]
[1745250173609,0.75193619,88182.0,88181.0,0.00305654]
[1745250173805,0.00543944,88171.0,88170.0,0.22683236]
[1745250174063,0.16543944,88171.0,88170.0,0.22683236]
[1745250174234,0.18660754,88171.0,88170.0,0.22683236]
[1745250175155,0.19718025,88171.0,88170.0,0.22683236]
[1745250175792,0.19718025,88171.0,88170.0,0.22883236]
[1745250175992,0.19718025,88171.0,88170.0,0.22983236]
[1745250176421,0.03718025,88171.0,88170.0,0.22983236]
[1745250176848,0.20718025,88171.0,88170.0,0.22983236]
[1745250177651,0.19534139,88171.0,88170.0,0.22983236]
[1745250178447,0.21331653,88171.0,88170.0,0.22983236]
[1745250178657,0.19534139,88171.0,88170.0,0.6331355]
[1745250180023,0.17534139,88171.0,88170.0,0.6331355]
[1745250187039,0.001,88182.0,88181.0,0.22680622]
[1745250187231,0.061,88182.0,88181.0,0.63010936]
[1745250187442,0.061,88182.0,88181.0,0.85450722]
[1745250187662,0.0531972,88205.0,88196.0,0.22676765]
[1745250187871,0.161,88197.0,88196.0,0.34279092]
[1745250188090,0.16145362,88197.0,88196.0,0.34052359]
[1745250188292,0.16145362,88197.0,88196.0,0.22676765]
[1745250188293,0.17006498,88197.0,88196.0,0.22676765]
[1745250188493,0.17006498,88197.0,88196.0,0.25800858]
[1745250191607,0.17006498,88197.0,88196.0,0.66131172]
[1745250192365,0.17006498,88197.0,88196.0,0.40330314]
[1745250194047,0.17006498,88197.0,88196.0,0.40286581]
[1745250194266,0.17006498,88197.0,88196.0,0.5311626]
[1745250194464,0.0008456,88207.0,88206.0,0.22674194]
[1745250194672,0.0608456,88207.0,88206.0,0.76683873]
[1745250194875,0.06098162,88207.0,88206.0,0.88059078]
[1745250195718,0.06198162,88207.0,88206.0,0.88059078]
[1745250196281,0.06298162,88207.0,88206.0,0.88059078]
[1745250196490,0.06198162,88207.0,88206.0,0.88059078]
[1745250196709,0.06098162,88207.0,88206.0,0.88059078]
[1745250196916,0.06198162,88207.0,88206.0,0.88059078]
[1745250197887,0.07061743,88207.0,88206.0,0.88059078]
[1745250198118,0.13,88234.0,88220.0,0.01133529]
[1745250198330,0.1708454,88223.0,88222.0,0.22670082]
[1745250198532,0.17936823,88223.0,88222.0,0.22670082]
[1745250198678,0.17936823,88223.0,88222.0,0.34045676]
[1745250199084,0.18990547,88223.0,88222.0,0.34045676]
[1745250199286,0.19190547,88223.0,88222.0,0.44954174]
[1745250199505,0.21397996,88223.0,88222.0,0.44954174]
[1745250199717,0.21197996,88223.0,88222.0,0.44954174]
[1745250199870,0.19090547,88223.0,88222.0,0.44954174]
[1745250200072,0.19290547,88223.0,88222.0,0.44954174]
[1745250200275,0.02107449,88231.0,88230.0,0.24122111]
[1745250200520,0.06107449,88231.0,88230.0,0.79957492]
[1745250201326,0.04,88231.0,88230.0,0.79957492]
[1745250202721,0.04,88231.0,88230.0,0.80057492]
[1745250205953,0.04,88231.0,88230.0,0.63948026]
[1745250206161,0.04,88231.0,88230.0,0.4128]
[1745250206571,0.06107449,88231.0,88230.0,0.4128]
[1745250206927,0.06107449,88231.0,88230.0,0.52655594]
[1745250207540,0.06107449,88231.0,88230.0,0.54109679]
[1745250207905,0.04,88231.0,88230.0,0.65484884]
[1745250208109,0.04,88231.0,88230.0,0.65384884]
[1745250208550,0.04,88231.0,88230.0,0.65484884]
[1745250208767,1e-08,88247.0,88246.0,0.24118001]
[1745250208981,0.17000001,88247.0,88246.0,0.35493595]
[1745250209190,0.17013618,88247.0,88246.0,0.35493595]
[1745250209367,0.1748511,88247.0,88246.0,0.35493595]
[1745250209605,0.1748511,88247.0,88246.0,0.46079115]
[1745250210030,0.17013618,88247.0,88246.0,0.46079115]
[1745250210232,0.17013618,88247.0,88246.0,0.46179115]
[1745250210632,0.17013618,88247.0,88246.0,0.47838398]
[1745250210877,0.17013618,88247.0,88246.0,0.47938398]
[1745250211360,0.17013618,88247.0,88246.0,0.47838398]
[1745250211556,0.17013618,88247.0,88246.0,0.47938398]
[1745250211984,0.17013618,88247.0,88246.0,0.47838398]
[1745250212127,0.17013618,88247.0,88246.0,0.47938398]
[1745250213096,0.17013618,88247.0,88246.0,0.48038398]
[1745250214003,0.18062994,88247.0,88246.0,0.48038398]
[1745250216094,0.18062994,88247.0,88246.0,0.58502398]
[1745250216282,0.18062994,88247.0,88246.0,0.4480351]
[1745250216482,0.18062994,88247.0,88246.0,0.3433951]
[1745250217887,0.18062994,88247.0,88246.0,0.7551951]
[1745250218512,0.18062994,88247.0,88246.0,0.4148]
[1745250218719,0.18554442,88247.0,88246.0,0.4148]
[1745250219113,0.18554442,88247.0,88246.0,0.50387594]
[1745250219319,0.18554442,88247.0,88246.0,0.4138]
[1745250219522,0.18554442,88247.0,88246.0,0.63943916]
[1745250219754,0.18654442,88247.0,88246.0,0.40713973]
[1745250220005,0.42957711,88247.0,88246.0,0.40713973]
[1745250220374,0.57957711,88247.0,88246.0,0.40713973]
[1745250220968,0.57957711,88247.0,88238.0,0.01133298]
[1745250220969,0.01133221,88244.0,88238.0,0.01133298]
[1745250221114,0.0258867,88243.0,88239.0,0.01133285]
[1745250221329,0.1758867,88243.0,88241.0,0.2266514]
[1745250221531,0.02105642,88242.0,88240.0,0.01133272]
[1745250221798,0.00482247,88241.0,88240.0,0.23798723]
[1745250222009,0.17587889,88241.0,88240.0,0.23798723]
[1745250222213,0.17687889,88241.0,88240.0,0.23798723]
[1745250222593,0.18737265,88241.0,88240.0,0.23798723]
[1745250223029,0.18837265,88241.0,88240.0,0.23798723]
[1745250224079,0.18837265,88241.0,88234.0,0.22666956]
[1745250224288,0.02105642,88240.0,88238.0,0.22665859]
[1745250224485,0.17105642,88240.0,88238.0,0.22665859]
[1745250224712,0.02587107,88239.0,88238.0,0.22665859]
[1745250224885,0.18636483,88239.0,88238.0,0.22665859]
[1745250227233,0.18636483,88239.0,88238.0,0.32072507]
[1745250227678,0.18155018,88239.0,88238.0,0.32072507]
[1745250227884,0.18625822,88239.0,88238.0,0.22665859]
[1745250228503,0.01133298,88238.0,88235.0,0.01133337]
[1745250228740,0.01133298,88238.0,88235.0,0.23799827]
[1745250228741,0.16,88238.0,88235.0,0.23799827]
[1745250228922,0.00470023,88237.0,88236.0,0.2266643]
[1745250229091,0.15470023,88237.0,88236.0,0.2266643]
[1745250229417,0.18625041,88237.0,88236.0,0.2266643]
[1745250229631,0.18625041,88237.0,88235.0,0.01133337]
[1745250229995,0.18625041,88237.0,88236.0,0.22666485]
[1745250230197,0.16519399,88237.0,88236.0,0.22666485]
[1745250231035,0.18632698,88237.0,88236.0,0.22666485]
[1745250231288,0.18632698,88237.0,88236.0,0.32186688]
[1745250231776,0.18162675,88237.0,88236.0,0.32186688]
[1745250231971,0.18162675,88237.0,88236.0,0.30205315]
[1745250235361,0.18162675,88237.0,88236.0,0.20685112]
[1745250235588,0.19295986,88237.0,88234.0,0.01133349]
[1745250235796,0.01133529,88220.0,88209.0,0.01133671]
[1745250235968,0.01133594,88215.0,88208.0,0.01133684]
[1745250236177,0.22672909,88211.0,88207.0,0.01133696]
[1745250236355,0.15677435,88211.0,88206.0,0.01133709]
[1745250236565,0.15677435,88211.0,88210.0,0.22757646]
[1745250236766,0.22730734,88211.0,88210.0,0.0008448]
[1745250236964,0.46453019,88211.0,88210.0,0.0008448]
[1745250237173,0.46453019,88211.0,88210.0,0.0028448]
[1745250237405,0.2378011,88211.0,88210.0,0.22957646]
[1745250238683,0.2378011,88211.0,88210.0,0.0028448]
[1745250238914,0.24624207,88211.0,88210.0,0.0008448]
[1745250239071,0.24624207,88211.0,88210.0,0.22757646]
[1745250240429,0.24624207,88211.0,88210.0,0.29908261]
[1745250240582,0.24624207,88211.0,88210.0,0.0008448]
[1745250240583,0.47297116,88211.0,88210.0,0.0008448]
[1745250240792,0.47674965,88203.0,88202.0,0.0006896]
[1745250240998,0.80039935,88203.0,88202.0,0.0006896]
[1745250241203,0.82153234,88203.0,88202.0,0.0006896]
[1745250242591,0.82153234,88203.0,88181.0,0.01334031]
[1745250242592,0.22676508,88197.0,88181.0,0.002]
[1745250242793,0.43636508,88197.0,88196.0,0.17623418]
[1745250243017,0.45749807,88197.0,88196.0,0.17623418]
[1745250244230,0.45849807,88197.0,88196.0,0.17623418]
[1745250244539,0.46899183,88197.0,88196.0,0.17623418]
[1745250246287,0.97214777,88197.0,88196.0,0.17623418]
[1745250246514,0.97214777,88197.0,88196.0,0.12943418]
[1745250247134,1.07574777,88197.0,88196.0,0.12943418]
[1745250247542,1.32674777,88197.0,88196.0,0.12943418]
[1745250251427,1.32674777,88197.0,88196.0,0.12376874]
[1745250251557,1.32674777,88197.0,88196.0,0.00013602]
[1745250253002,0.47680365,88182.0,88181.0,0.002]
[1745250253180,0.63680365,88182.0,88181.0,0.002]
[1745250253820,0.65232297,88182.0,88181.0,0.002]
[1745250254034,0.68394972,88182.0,88181.0,0.002]
[1745250254227,0.68394972,88182.0,88181.0,0.003]
[1745250254402,0.45714607,88182.0,88181.0,0.003]
[1745250254601,0.68394972,88182.0,88181.0,0.003]
[1745250254819,0.20020743,88182.0,88181.0,0.004]
[1745250255016,0.20020743,88182.0,88181.0,0.23080622]
[1745250255194,0.20020743,88182.0,88181.0,0.0622615]
[1745250255415,0.20020743,88182.0,88181.0,0.004]
[1745250255811,0.21525703,88182.0,88181.0,0.004]
[1745250256047,0.21525703,88182.0,88174.0,0.22682423]
[1745250256048,0.01134044,88180.0,88174.0,0.22682423]
[1745250256283,0.14,88180.0,88177.0,0.23815689]
[1745250256454,0.03162675,88179.0,88177.0,0.23815689]
[1745250256648,0.18162675,88179.0,88177.0,0.23815689]
[1745250257017,0.02113299,88178.0,88177.0,0.23815733]
[1745250257135,0.02113299,88178.0,88177.0,0.01134082]
[1745250257496,0.18162675,88178.0,88177.0,0.01134082]
[1745250257832,0.18162675,88178.0,88177.0,0.23815733]
[1745250258702,0.40844286,88178.0,88174.0,0.23816345]
[1745250258939,0.01134095,88176.0,88171.0,0.23817254]
[1745250259160,0.15,88176.0,88174.0,0.22682243]
[1745250259337,0.15,88176.0,88175.0,0.22682166]
[1745250259755,0.16049376,88176.0,88172.0,0.01134146]
[1745250259929,0.23816814,88173.0,88170.0,0.0004226]
[1745250260131,0.16134134,88173.0,88170.0,0.0004226]
[1745250260496,0.24789428,88172.0,88171.0,0.001]
[1745250260672,0.39789428,88172.0,88171.0,0.001]
[1745250260804,0.40838804,88172.0,88171.0,0.001]
[1745250261013,0.18155867,88172.0,88171.0,0.001]
[1745250261438,0.18155867,88172.0,88171.0,0.22783195]
[1745250261648,0.40838804,88172.0,88170.0,0.0004226]
[1745250261871,0.02106491,88171.0,88170.0,0.0004226]
[1745250262071,0.17106491,88171.0,88170.0,0.22725712]
[1745250262314,0.17106491,88171.0,88170.0,0.0004226]
[1745250262694,0.18155867,88171.0,88170.0,0.22825712]
[1745250263053,0.18155867,88171.0,88170.0,0.0014226]
[1745250263233,0.18155867,88171.0,88170.0,0.0024226]
[1745250263447,0.40839062,88171.0,88170.0,0.0024226]
[1745250263687,0.40839062,88171.0,88170.0,0.0034226]
[1745250263898,1.22541192,88170.0,88169.0,0.0008452]
[1745250264108,1.38541192,88170.0,88169.0,0.0008452]